[Event "41st Amateur D7"]
[Site "ChessGUI4"]
[Date "2013.07.11"]
[Round "35.3"]
[White "ChessKiss 1.7 64-bit"]
[Black "Waxman 2011"]
[Result "0-1"]
[BlackElo "2256"]
[ECO "C43"]
[EventDate "2013.??.??"]
[TimeControl "40/1500:40/1500:40/1500"]
[WhiteElo "2214"]

{ i5 Quad } 1.e4 { [%eval 0,1] [%emt 0:00:00] } 1...e5
{ [%eval 0,1] [%emt 0:00:00] } 2.Nf3 { [%eval 0,1] [%emt 0:00:00] } 2...Nf6
{ [%eval 0,1] [%emt 0:00:00] } 3.d4 { [%eval 0,1] [%emt 0:00:00] } 3...Nxe4
{ [%eval 0,1] [%emt 0:00:00] } 4.Bd3 { [%eval 0, 1] [%emt 0:00:00] } 4...d5
{ [%eval 0,1] [%emt 0:00:00] } 5.Nxe5 { [%eval 0,1] [%emt 0:00:00] } 5...Bd6
{ [%eval 0,1] [%emt 0:00:00] } 6.O-O { [%eval 0,1] [%emt 0:00:00] } 6...O-O
{ [%eval 0,1] [%emt 0:00:00] } 7.c4 { [%eval 0,1] [%emt 0:00:00] } 7...Bxe5
{ [%eval 0,1] [%emt 0:00:00] } 8.dxe5 { [%eval 0,1] [%emt 0:00:00] } 8...Nc6
{ [%eval 0, 1] [%emt 0:00:00] } 9.cxd5 { [%eval 27,12] [%emt 0:00:43] }
9...Qxd5 { [%eval 38,11] [%emt 0:00:13] (Qxd5) } 10.Qf3
{ [%eval 3,13] [%emt 0:00:39] (Qf3) } 10...Bf5
{ [%eval 44,13] [%emt 0:01:04] (Bf5) } 11.Nc3
{ [%eval -46,12] [%emt 0:00:41] (Nc3) } 11...Nxc3
{ [%eval 48,13] [%emt 0:00:49] (Nxc3) } 12.Qxf5
{ [%eval -41,14] [%emt 0:00:36] (Qxd5) } 12...g6
{ [%eval 41,13] [%emt 0:00:36] (g6) } 13.Qf6
{ [%eval -44,13] [%emt 0:00:39] (Qf6) } 13...Qxe5
{ [%eval 35,13] [%emt 0:00:41] (Qxe5) } 14.Bg5
{ [%eval -52,13] [%emt 0:00:37] (Bg5) } 14...Qxf6
{ [%eval 20,14] [%emt 0:00:48] (Qxf6) } 15.Bxf6
{ [%eval -65,15] [%emt 0:00:36] (Bxf6) } 15...Nd5
{ [%eval 58,13] [%emt 0:00:12] (Nd5) } 16.Bg5
{ [%eval -72,14] [%emt 0:00:35] (Bg5) } 16...Rfe8
{ [%eval 55,13] [%emt 0:00:37] (f6) } 17.Rae1
{ [%eval -64,12] [%emt 0:00:34] (Rad1) } 17...Ncb4
{ [%eval 52,14] [%emt 0:00:40] (Ncb4) } 18.Bb1
{ [%eval -79,14] [%emt 0:00:33] (Be4) } 18...Kg7
{ [%eval 64,13] [%emt 0:00:52] (Kg7) } 19.a3
{ [%eval -75,12] [%emt 0:00:32] (f3) } 19...f6
{ [%eval 58,13] [%emt 0:00:31] (h6) } 20.Bc1
{ [%eval -72,14] [%emt 0:00:31] (Bh4) } 20...Na6
{ [%eval 53,14] [%emt 0:00:31] (Na6) } 21.Ba2
{ [%eval -73,13] [%emt 0:00:31] (Rxe8) } 21...c6
{ [%eval 56,15] [%emt 0:00:39] (c6) } 22.b4
{ [%eval -87,13] [%emt 0:00:29] (Bxd5) } 22...Nac7
{ [%eval 82,13] [%emt 0:00:30] (Re5) } 23.Bb2
{ [%eval -101,13] [%emt 0:00:30] (Rxe8) } 23...Rad8
{ [%eval 84,13] [%emt 0:00:39] (Rxe1) } 24.Bc4
{ [%eval -69,11] [%emt 0:00:28] (Bb3) } 24...Nb6
{ [%eval 79,14] [%emt 0:00:47] (Nb6) } 25.Rxe8
{ [%eval -126,14] [%emt 0:00:29] (Bb3) } 25...Nxe8
{ [%eval 86,14] [%emt 0:00:33] (Nxe8) } 26.Bb3
{ [%eval -140,15] [%emt 0:00:26] (Bb3) } 26...Rd3
{ [%eval 92,14] [%emt 0:00:34] (Rd3) } 27.Bd1
{ [%eval -130,15] [%emt 0:00:26] (Bd1) } 27...Nd6
{ [%eval 134,15] [%emt 0:00:40] (Nc4) } 28.Re1
{ [%eval -116,13] [%emt 0:00:25] (Re1) } 28...Ndc4
{ [%eval 133,16] [%emt 0:01: 10] (Rd2) } 29.Be2
{ [%eval -199,14] [%emt 0:00:23] (Be2) } 29...Rb3
{ [%eval 110,16] [%emt 0:00:52] (Rb3) } 30.Bxc4
{ [%eval -214,14] [%emt 0:00:23] (Bxc4) } 30...Nxc4
{ [%eval 108,16] [%emt 0:00:47] (Nxc4) } 31.Bd4
{ [%eval -231,15] [%emt 0:00:24] (Bd4) } 31...Kf7
{ [%eval 146,15] [%emt 0:00:57] (Kf7) } 32.Bxa7
{ [%eval -240,15] [%emt 0:00:24] (h3) } 32...Rxa3
{ [%eval 165,16] [%emt 0:00:42] (Rxa3) } 33.Bd4
{ [%eval -283,16] [%emt 0:00:21] (Bd4) } 33...Rb3
{ [%eval 169,16] [%emt 0:00:49] (Rb3) } 34.Bc5
{ [%eval -292,15] [%emt 0:00:21] (f3) } 34...b6
{ [%eval 139,16] [%emt 0:00:41] (b6) } 35.Re7+
{ [%eval -286,17] [%emt 0:00:18] (Re7) } 35...Kg8
{ [%eval 135,18] [%emt 0:01:02] (Kg8) } 36.Re8+
{ [%eval -315,17] [%emt 0:00:19] (Re8) } 36...Kg7
{ [%eval 149,17] [%emt 0:00:23] (Kg7) } 37.Re7+
{ [%eval -336,17] [%emt 0:00:18] (Re7) } 37...Kh6
{ [%eval 154,18] [%emt 0:00:52] (Kh6) } 38.Be3+
{ [%eval -343,16] [%emt 0:00:19] (Be3) } 38...Nxe3
{ [%eval 172,17] [%emt 0:00:21] (Nxe3) } 39.fxe3
{ [%eval -307,17] [%emt 0:00:18] (fxe3) } 39...Rxb4
{ [%eval 188,19] [%emt 0:00:45] (Rxb4) } 40.Re6
{ [%eval -329,16] [%emt 0:00:17] (Re6) } 40...f5
{ [%eval 194,19] [%emt 0:00:37] (c5) } 41.Rxc6
{ [%eval -282,18] [%emt 0:00:59] (Rxc6) } 41...Rb2
{ [%eval 204,19] [%emt 0:00:53] (Rb2) } 42.h3
{ [%eval -293,18] [%emt 0:00:57] (g3) } 42...b5
{ [%eval 193,18] [%emt 0:00:16] (b5) } 43.Rb6
{ [%eval -301,17] [%emt 0: 00:50] (Rb6) } 43...b4
{ [%eval 197,19] [%emt 0:00:28] (b4) } 44.Rb5
{ [%eval -285,17] [%emt 0:00:55] (Kf1) } 44...b3
{ [%eval 197,17] [%emt 0:00:11] (b3) } 45.Kf1
{ [%eval -268,18] [%emt 0:00:53] (Kf1) } 45...Kg7
{ [%eval 186,16] [%emt 0:00:22] (Kg7) } 46.Rb6
{ [%eval -294,16] [%emt 0:00:52] (g3) } 46...Kf7
{ [%eval 185,16] [%emt 0:00:33] (Rb1) } 47.g3
{ [%eval -297,16] [%emt 0:00:50] (Ke1) } 47...Kg7
{ [%eval 186,18] [%emt 0:00:45] (h5) } 48.Rb5
{ [%eval -318,17] [%emt 0:00:50] (Rb4) } 48...Kf6
{ [%eval 195, 17] [%emt 0:00:28] (Rb1) } 49.g4
{ [%eval -270,15] [%emt 0:00:47] (Rb4) } 49...fxg4
{ [%eval 226,18] [%emt 0:00:33] (fxg4) } 50.hxg4
{ [%eval -330,17] [%emt 0:00:46] (hxg4) } 50...h5
{ [%eval 297,18] [%emt 0:00:34] (Rb1) } 51.gxh5
{ [%eval -479,15] [%emt 0:00:45] (gxh5) } 51...gxh5
{ [%eval 322,18] [%emt 0:00:16] (gxh5) } 52.Rb4
{ [%eval -548,17] [%emt 0:00:43] (Rb6) } 52...h4
{ [%eval 445,15] [%emt 0:00:35] (Rb1) } 53.Rxh4
{ [%eval -549,16] [%emt 0:00:42] (Rxh4) } 53...Rc2
{ [%eval 450,16] [%emt 0: 00:39] (Rc2) } 54.Rh6+
{ [%eval -1660,17] [%emt 0:00:41] (Rh6) } 54...Kf5
{ [%eval 725, 16] [%emt 0:00:26] (Ke5) } 55.e4+
{ [%eval -1680,18] [%emt 0:00:39] (Rh4) } 55...Kf4
{ [%eval 746,17] [%emt 0:00:35] (Kf4) } 56.Rh4+
{ [%eval -1680,18] [%emt 0:00:38] (Rh4) } 56...Kg3
{ [%eval 746,16] [%emt 0:00:24] (Kg3) } 57.Rh7
{ [%eval -1690,18] [%emt 0:00:37] (Rh8) } 57...b2
{ [%eval 748,16] [%emt 0:00:46] (b2) } 0-1

[Event "41st Amateur D7"]
[Site "ChessGUI4"]
[Date "2013.07.12"]
[Round "35.4"]
[White "FireFly 2.6.0 64-bit"]
[Black "Gibbon 2.57a 64-bit"]
[Result "0-1"]
[BlackElo "2251"]
[ECO "E38"]
[EventDate "2013.??.??"]
[TimeControl "40/1500:40/1500:40/1500"]
[WhiteElo "2258"]

{ i5 Quad } 1.d4 { [%eval 0,1] [%emt 0:00:00] } 1...Nf6
{ [%eval 0,1] [%emt 0:00:00] } 2.c4 { [%eval 0,1] [%emt 0:00:00] } 2...e6
{ [%eval 0,1] [%emt 0:00:00] } 3.Nc3 { [%eval 0,1] [%emt 0:00:00] } 3...Bb4
{ [%eval 0,1] [%emt 0:00:00] } 4.Qc2 { [%eval 0, 1] [%emt 0:00:00] } 4...c5
{ [%eval 0,1] [%emt 0:00:00] } 5.dxc5 { [%eval 0,1] [%emt 0:00:00] } 5...Qc7
{ [%eval 0,1] [%emt 0:00:00] } 6.Nf3 { [%eval 0,1] [%emt 0:00:00] } 6...a6
{ [%eval 0,1] [%emt 0:00:00] } 7.e3 { [%eval 0,1] [%emt 0:00:00] } 7...Bxc5
{ [%eval 0,1] [%emt 0:00:00] } 8.b3 { [%eval 0,1] [%emt 0:00:00] } 8...Be7
{ [%eval 0,1] [%emt 0:00:00] } 9.Bb2 { [%eval 54,11] [%emt 0:00:57] } 9...Nc6
{ [%eval -30,14] [%emt 0:01:28] (Nc6) } 10.a3
{ [%eval 50,11] [%emt 0:00:56] (Rd1) } 10...O-O
{ [%eval -23,13] [%emt 0:00:32] (d5) } 11.Bd3
{ [%eval 64,11] [%emt 0:00:55] (Be2) } 11...b6
{ [%eval -23,13] [%emt 0:00:41] (g6) } 12.O-O
{ [%eval 93,11] [%emt 0:00:55] (Na4) } 12...Bb7
{ [%eval -25,12] [%emt 0:00:46] (g6) } 13.Na4
{ [%eval 97,11] [%emt 0:00: 54] (Na4) } 13...d6
{ [%eval -23,12] [%emt 0:01:26] (Na5) } 14.Nc3
{ [%eval 33,11] [%emt 0:00:53] (Rad1) } 14...Ne5
{ [%eval -10,13] [%emt 0:00:56] (Ne5) } 15.Nxe5
{ [%eval 13,12] [%emt 0:00:52] (Nxe5) } 15...dxe5
{ [%eval -9,13] [%emt 0:00:13] (dxe5) } 16.Rad1
{ [%eval 13,11] [%emt 0:00:52] (Ne4) } 16...Rfd8
{ [%eval -8,12] [%emt 0:00: 17] (Rac8) } 17.Rfe1
{ [%eval 1,10] [%emt 0:00:51] (Ne4) } 17...Rd7
{ [%eval -5,12] [%emt 0:00:19] (Bd6) } 18.Ne4
{ [%eval 6,12] [%emt 0:00:50] (Be2) } 18...Bxe4
{ [%eval 2,14] [%emt 0:00:43] (Bxe4) } 19.Bxe4
{ [%eval 15,13] [%emt 0:00:41] (Bxe4) } 19...Nxe4
{ [%eval 5,15] [%emt 0:00:43] (Rxd1) } 20.Qxe4
{ [%eval 34,13] [%emt 0:00:40] (Qxe4) } 20...Rad8
{ [%eval 14,15] [%emt 0:00:57] (Rad8) } 21.Rxd7
{ [%eval 22,13] [%emt 0:00:40] (Rxd7) } 21...Qxd7
{ [%eval 12,15] [%emt 0:00:32] (Qxd7) } 22.Bxe5
{ [%eval 18,12] [%emt 0:00:40] (Bxe5) } 22...Bxa3
{ [%eval 10,14] [%emt 0:00: 27] (Bxa3) } 23.Qg4
{ [%eval 14,12] [%emt 0:00:31] (Qd4) } 23...Bf8
{ [%eval 10,14] [%emt 0:00:10] (f5) } 24.Bd4
{ [%eval 28,11] [%emt 0:00:31] (Qd4) } 24...Qd6
{ [%eval 13,13] [%emt 0:00:12] (f5) } 25.Qe4
{ [%eval 12,11] [%emt 0:00:31] (Qe4) } 25...Qb4
{ [%eval 12,13] [%emt 0:00:12] (a5) } 26.Rb1
{ [%eval 19,11] [%emt 0:00:31] (Qb1) } 26...Bc5
{ [%eval 10,13] [%emt 0:00:18] (Bc5) } 27.Qh4
{ [%eval 0,12] [%emt 0:00:31] (Qh4) } 27...Rd7
{ [%eval 0,14] [%emt 0:00:22] (f6) } 28.Qg3
{ [%eval 0,12] [%emt 0:00: 31] (Qg3) } 28...Bxd4
{ [%eval 0,14] [%emt 0:00:11] (Bxd4) } 29.exd4
{ [%eval 5,12] [%emt 0:00:31] (exd4) } 29...h6
{ [%eval 0,14] [%emt 0:00:13] (h6) } 30.Qe3
{ [%eval 3, 12] [%emt 0:00:31] (Qd3) } 30...b5
{ [%eval 2,14] [%emt 0:00:44] (b5) } 31.Rc1
{ [%eval -15,12] [%emt 0:00:31] (Rc1) } 31...bxc4
{ [%eval 15,14] [%emt 0:00:23] (a5) } 32.bxc4
{ [%eval -14,12] [%emt 0:00:31] (bxc4) } 32...Rd8
{ [%eval 14,14] [%emt 0:00: 10] (Qb2) } 33.c5
{ [%eval 16,12] [%emt 0:00:31] (Qd3) } 33...Rxd4
{ [%eval 6,15] [%emt 0:00:15] (Rxd4) } 34.c6
{ [%eval -1,12] [%emt 0:00:31] (c6) } 34...Rd8
{ [%eval 0,15] [%emt 0:00:13] (Rd8) } 35.h3
{ [%eval 16,11] [%emt 0:00:31] (c7) } 35...a5
{ [%eval 0,15] [%emt 0:00:16] (a5) } 36.g3
{ [%eval -6,11] [%emt 0:00:31] (c7) } 36...a4
{ [%eval 22,15] [%emt 0:00:14] (a4) } 37.Qa7
{ [%eval -31,12] [%emt 0:00:31] (c7) } 37...Qb2
{ [%eval 72,14] [%emt 0:00:12] (a3) } 38.Rc4
{ [%eval -2,12] [%emt 0:00:31] (Qc5) } 38...Rd1+
{ [%eval 0,14] [%emt 0:00:38] (Rd1) } 39.Kh2
{ [%eval 0,12] [%emt 0: 00:31] (Kh2) } 39...Qe2
{ [%eval 240,15] [%emt 0:00:23] (Qe2) } 40.Qa8+
{ [%eval 0,12] [%emt 0:00:32] (Qa8) } 40...Kh7
{ [%eval 237,17] [%emt 0:00:11] (Kh7) } 41.c7
{ [%eval -500,13] [%emt 0:00:52] (c7) } 41...Qf1
{ [%eval 266,17] [%emt 0:01:13] (Qf1) } 42.h4
{ [%eval -452,13] [%emt 0:00:36] (h4) } 42...Qg1+
{ [%eval 255,16] [%emt 0:01: 24] (Qg1) } 43.Kh3
{ [%eval -452,13] [%emt 0:00:00] (Kh3) } 43...Rd5
{ [%eval 255,15] [%emt 0:01:01] } 44.Qg8+
{ [%eval -484,13] [%emt 0:00:37] (Qxd5) } 44...Kxg8
{ [%eval 540,16] [%emt 0:00:26] (Kxg8) } 45.c8=Q+
{ [%eval -384,13] [%emt 0:00:37] (c8=Q) } 45...Kh7
{ [%eval 559,16] [%emt 0:01:55] (Kh7) } 46.Rc1
{ [%eval -492,14] [%emt 0: 00:37] (Rc1) } 46...Qxf2
{ [%eval 605,16] [%emt 0:01:37] (Qxf2) } 47.Qc2+
{ [%eval -516,13] [%emt 0:00:37] (Rc2) } 47...Qxc2
{ [%eval 633,17] [%emt 0:00:28] (Qxc2) } 48.Rxc2
{ [%eval -509,15] [%emt 0:00:37] (Rxc2) } 48...a3
{ [%eval 644,18] [%emt 0:00:42] (Kg6) } 49.Kg4
{ [%eval -508,14] [%emt 0:00:37] (Kg4) } 0-1

[Event "41st Amateur D7"]
[Site "ChessGUI4"]
[Date "2013.07.12"]
[Round "35.5"]
[White "Tigran 2.3 64-bit"]
[Black "Butcher 1.64 64-bit"]
[Result "0-1"]
[BlackElo "2355"]
[ECO "E58"]
[EventDate "2013.??.??"]
[TimeControl "40/1500:40/1500:40/1500"]
[WhiteElo "2289"]

{ i5 Quad } 1.d4 { [%eval 0,1] [%emt 0:00:00] } 1...Nf6
{ [%eval 0,1] [%emt 0:00:00] } 2.c4 { [%eval 0,1] [%emt 0:00:00] } 2...e6
{ [%eval 0,1] [%emt 0:00:00] } 3.Nc3 { [%eval 0,1] [%emt 0:00:00] } 3...Bb4
{ [%eval 0,1] [%emt 0:00:00] } 4.e3 { [%eval 0,1] [%emt 0:00:00] } 4...O-O
{ [%eval 0,1] [%emt 0:00:00] } 5.Bd3 { [%eval 0,1] [%emt 0: 00:00] } 5...c5
{ [%eval 0,1] [%emt 0:00:00] } 6.Nf3 { [%eval 0,1] [%emt 0:00:00] } 6...d5
{ [%eval 0,1] [%emt 0:00:00] } 7.O-O { [%eval 0,1] [%emt 0:00:00] } 7...Nc6
{ [%eval 0, 1] [%emt 0:00:00] } 8.a3 { [%eval 0,1] [%emt 0:00:00] } 8...Bxc3
{ [%eval 0,1] [%emt 0:00:00] } 9.bxc3 { [%eval 33,13] [%emt 0:00:42] } 9...b6
{ [%eval 16,11] [%emt 0:01: 06] (b6) } 10.Qa4
{ [%eval 32,13] [%emt 0:00:42] (cxd5) } 10...Bb7
{ [%eval 4,11] [%emt 0:00:59] (Bd7) } 11.Rb1
{ [%eval 37,12] [%emt 0:00:42] (cxd5) } 11...dxc4
{ [%eval -58,11] [%emt 0:00:59] (Qd7) } 12.Bxc4
{ [%eval 18,13] [%emt 0:00:37] (Bxc4) } 12...Na5
{ [%eval -26,11] [%emt 0:00:58] (Rc8) } 13.Be2
{ [%eval -1,13] [%emt 0:00:36] (Be2) } 13...cxd4
{ [%eval -15,11] [%emt 0:01:05] (Rc8) } 14.cxd4
{ [%eval 16, 13] [%emt 0:00:43] (cxd4) } 14...Be4
{ [%eval -6,11] [%emt 0:01:03] (Be4) } 15.Rb2
{ [%eval 5,14] [%emt 0:00:35] (Rb2) } 15...Nd5
{ [%eval -26,12] [%emt 0:01:02] (Nd5) } 16.Bd2
{ [%eval 4,13] [%emt 0:00:44] (Bd2) } 16...Rc8
{ [%eval 0,12] [%emt 0:01:01] (Rc8) } 17.Ne5
{ [%eval 15,13] [%emt 0:00:37] (Ba6) } 17...Nc3
{ [%eval -6,11] [%emt 0: 00:59] (Nc3) } 18.Bxc3
{ [%eval 12,13] [%emt 0:00:44] (Bxc3) } 18...Rxc3
{ [%eval -24, 11] [%emt 0:00:51] (Rxc3) } 19.Qb4
{ [%eval 4,13] [%emt 0:00:39] (Qb4) } 19...Rc8
{ [%eval -7,11] [%emt 0:00:58] (Rc7) } 20.f3
{ [%eval 27,12] [%emt 0:00:45] (Ba6) } 20...Bb7
{ [%eval -7,11] [%emt 0:00:57] (f6) } 21.Bb5
{ [%eval 25,12] [%emt 0:00:45] (Bb5) } 21...Rc7
{ [%eval -16,11] [%emt 0:00:48] (f6) } 22.Rfb1
{ [%eval 15,12] [%emt 0:00:45] (f4) } 22...f6
{ [%eval -15,11] [%emt 0:00:48] (Qc8) } 23.Nc4
{ [%eval 10,13] [%emt 0:00:46] (Ng4) } 23...Nxc4
{ [%eval -19,12] [%emt 0:00:47] (Nxc4) } 24.Bxc4
{ [%eval 10,14] [%emt 0:00:46] (Bxc4) } 24...Qd7
{ [%eval -5,12] [%emt 0:00:46] (Bd5) } 25.Rc2
{ [%eval 12,14] [%emt 0:00:38] (Rc2) } 25...Rfc8
{ [%eval 0,12] [%emt 0:00:45] (Rfc8) } 26.Rbc1
{ [%eval 8,15] [%emt 0:00:47] (Rbc1) } 26...Ba6
{ [%eval 8,12] [%emt 0:00:44] (Ba6) } 27.f4
{ [%eval 3,15] [%emt 0:00:47] (Bb3) } 27...Bxc4
{ [%eval -13,13] [%emt 0:00:44] (Bxc4) } 28.Rxc4
{ [%eval 2,16] [%emt 0:00:40] (Rxc4) } 28...Kf7
{ [%eval -5,12] [%emt 0:00:43] (Rc6) } 29.h3
{ [%eval 8,14] [%emt 0:00:49] (Kf2) } 29...h6
{ [%eval -12,12] [%emt 0:00:42] (Kg8) } 30.Rxc7
{ [%eval 5,15] [%emt 0:00:49] (Kf2) } 30...Rxc7
{ [%eval -20,12] [%emt 0:00:41] (Rxc7) } 31.Rc4
{ [%eval 0,15] [%emt 0:00:49] (Rxc7) } 31...g5
{ [%eval -13,13] [%emt 0:00:40] (Qc8) } 32.Qc3
{ [%eval 9,16] [%emt 0:00:49] (fxg5) } 32...Rxc4
{ [%eval -25,14] [%emt 0:00:39] (Rxc4) } 33.Qxc4
{ [%eval 7,15] [%emt 0:00:50] (Qxc4) } 33...gxf4
{ [%eval -28,13] [%emt 0:00:34] (Kg7) } 34.exf4
{ [%eval 0,15] [%emt 0:00:48] (exf4) } 34...f5
{ [%eval -34,13] [%emt 0:00:32] (f5) } 35.g4
{ [%eval -48,14] [%emt 0:00:53] (Qc3) } 35...fxg4
{ [%eval -95,12] [%emt 0:00:30] (fxg4) } 36.hxg4
{ [%eval -53,15] [%emt 0:00:47] (hxg4) } 36...Qd6
{ [%eval -57,12] [%emt 0:00:27] (Qd6) } 37.f5
{ [%eval -65,14] [%emt 0:00:49] (f5) } 37...Kf6
{ [%eval -108,12] [%emt 0:00:22] (Kf6) } 38.Kh1
{ [%eval -67,14] [%emt 0:01:00] (Qxe6) } 38...exf5
{ [%eval -162,11] [%emt 0:00:23] (exf5) } 39.gxf5
{ [%eval -67,14] [%emt 0:00:58] (gxf5) } 39...h5
{ [%eval -159,11] [%emt 0:00:21] (Kxf5) } 40.a4
{ [%eval -80,13] [%emt 0:01:14] (Kg2) } 40...h4
{ [%eval -169,11] [%emt 0:00:16] (Kxf5) } 41.Qc8
{ [%eval -79,13] [%emt 0:00:34] (Qd3) } 41...Qd5+
{ [%eval -154,13] [%emt 0:00: 49] (Qd5) } 42.Kh2
{ [%eval -82,13] [%emt 0:00:34] (Kh2) } 42...Qd6+
{ [%eval -139,13] [%emt 0:00:46] (Kg5) } 43.Kh1
{ [%eval 0,16] [%emt 0:00:34] (Kh1) } 43...a5
{ [%eval -93,14] [%emt 0:02:26] (Qd5) } 44.Qe8
{ [%eval -41,13] [%emt 0:00:29] (Kg2) } 44...Kxf5
{ [%eval -150,15] [%emt 0:01:18] (Kxf5) } 45.Qh5+
{ [%eval -46,12] [%emt 0: 00:34] (Qh5) } 45...Ke4
{ [%eval -161,14] [%emt 0:00:43] (Ke4) } 46.Qxh4+
{ [%eval -51, 11] [%emt 0:00:34] (Qxh4) } 46...Kd3
{ [%eval -216,13] [%emt 0:00:41] (Qf4) } 47.Qh8
{ [%eval -73,12] [%emt 0:00:34] (Qe1) } 47...Qxd4
{ [%eval -252,14] [%emt 0:01:23] (Qd5) } 48.Qg8
{ [%eval -88,11] [%emt 0:00:35] (Qh3) } 48...Kc3
{ [%eval -231,12] [%emt 0: 00:42] (Qh4) } 49.Qe6
{ [%eval -168,13] [%emt 0:00:35] (Qe6) } 49...Kb4
{ [%eval -349, 15] [%emt 0:02:14] (Kb4) } 50.Qc6
{ [%eval -164,13] [%emt 0:00:35] (Qc6) } 50...Qc5
{ [%eval -365,15] [%emt 0:02:00] (Qh4) } 51.Qd7
{ [%eval -164,14] [%emt 0:00:35] (Qd7) } 51...b5
{ [%eval -264,14] [%emt 0:01:02] (Qc1) } 52.axb5
{ [%eval -98,13] [%emt 0:00:28] (axb5) } 52...a4
{ [%eval -255,13] [%emt 0:00:33] (a4) } 53.b6
{ [%eval -97,12] [%emt 0:00:35] (b6) } 53...Qxb6
{ [%eval -259,13] [%emt 0:00:33] (Qxb6) } 54.Qd2+
{ [%eval -94,11] [%emt 0:00:35] (Qd2) } 54...Kc4
{ [%eval -262,12] [%emt 0: 00:28] (Kb5) } 55.Qc2+
{ [%eval -94,14] [%emt 0:00:35] (Qc2) } 55...Kb5
{ [%eval -255, 12] [%emt 0:00:28] (Kb5) } 56.Qd3+
{ [%eval -94,13] [%emt 0:00:35] (Qd3) } 56...Kb4
{ [%eval -255,12] [%emt 0:00:23] (Ka5) } 57.Qd2+
{ [%eval 0,17] [%emt 0:00:36] (Qd2) } 57...Ka3
{ [%eval -269,12] [%emt 0:00:28] (Kb5) } 58.Qc1+
{ [%eval -94,12] [%emt 0:00:36] (Qd7) } 58...Qb2
{ [%eval -266,12] [%emt 0:00:27] (Qb2) } 59.Qc7
{ [%eval -98,12] [%emt 0:00:36] (Qc7) } 59...Ka2
{ [%eval -302,13] [%emt 0:00:27] (Qb1) } 60.Qc4+
{ [%eval -105,12] [%emt 0:00:36] (Qc4) } 60...Qb3
{ [%eval -311,13] [%emt 0: 00:27] (Qb3) } 61.Qe2+
{ [%eval -109,13] [%emt 0:00:33] (Qc5) } 61...Ka1
{ [%eval -408, 14] [%emt 0:00:26] (Ka1) } 62.Qe5+
{ [%eval -118,15] [%emt 0:00:37] (Qe5) } 62...Qb2
{ [%eval -381,14] [%emt 0:00:23] (Qb2) } 63.Qc5
{ [%eval -120,15] [%emt 0:00:37] (Qc7) } 63...a3
{ [%eval -419,14] [%emt 0:00:26] (a3) } 64.Kg1
{ [%eval -120,14] [%emt 0:00:37] (Kg1) } 64...a2
{ [%eval -383,13] [%emt 0:00:24] (a2) } 0-1

[Event "41st Amateur D7"]
[Site "ChessGUI4"]
[Date "2013.07.12"]
[Round "36.1"]
[White "Carballo 0.8"]
[Black "ProChess 1.02AD"]
[Result "1-0"]
[BlackElo "2244"]
[ECO "C73"]
[EventDate "2013.??.??"]
[TimeControl "40/1500:40/1500:40/1500"]
[WhiteElo "2273"]

{ i5 Quad } 1.e4 { [%eval 0,1] [%emt 0:00:00] } 1...e5
{ [%eval 0,1] [%emt 0:00:00] } 2.Nf3 { [%eval 0,1] [%emt 0:00:00] } 2...Nc6
{ [%eval 0,1] [%emt 0:00:00] } 3.Bb5 { [%eval 0,1] [%emt 0:00:00] } 3...a6
{ [%eval 0,1] [%emt 0:00:00] } 4.Ba4 { [%eval 0,1] [%emt 0:00:00] } 4...d6
{ [%eval 0,1] [%emt 0:00:00] } 5.Bxc6+ { [%eval 0,1] [%emt 0: 00:00] }
5...bxc6 { [%eval 0,1] [%emt 0:00:00] } 6.d4 { [%eval 0,1] [%emt 0:00:00] }
6...f6 { [%eval 0,1] [%emt 0:00:00] } 7.Be3 { [%eval 0,1] [%emt 0:00:00] }
7...Ne7 { [%eval 0, 1] [%emt 0:00:00] } 8.c4 { [%eval 0,1] [%emt 0:00:00] }
8...Ng6 { [%eval 0,1] [%emt 0: 00:00] } 9.Nc3
{ [%eval 50,12] [%emt 0:00:37] } 9...Be7
{ [%eval -36,12] [%emt 0:03: 37] (Be7) } 10.Qa4
{ [%eval 41,11] [%emt 0:00:36] (Qb3) } 10...Bd7
{ [%eval -23,12] [%emt 0:00:53] (Bd7) } 11.c5
{ [%eval 27,12] [%emt 0:00:35] (Qb3) } 11...exd4
{ [%eval -1,13] [%emt 0:00:45] (Qb8) } 12.Nxd4
{ [%eval 72,14] [%emt 0:00:34] (Nxd4) } 12...Qb8
{ [%eval 7,13] [%emt 0:01:11] (Ne5) } 13.O-O-O
{ [%eval 55,13] [%emt 0:00:33] (O-O-O) } 13...dxc5
{ [%eval 19,12] [%emt 0:00:57] (Qb7) } 14.Nf5
{ [%eval 47, 13] [%emt 0:00:32] (Nf5) } 14...Bf8
{ [%eval 10,11] [%emt 0:00:45] (Bf8) } 15.Qc2
{ [%eval 46,12] [%emt 0:00:32] (Rxd7) } 15...Ne5
{ [%eval 45,11] [%emt 0:00:44] (Qb4) } 16.f4
{ [%eval 43,13] [%emt 0:00:31] (f4) } 16...Nc4
{ [%eval 40,11] [%emt 0:00:46] (Nc4) } 17.b3
{ [%eval 31,12] [%emt 0:00:30] (Bf2) } 17...Nxe3
{ [%eval 52,12] [%emt 0: 01:15] (Nxe3) } 18.Nxe3
{ [%eval 32,13] [%emt 0:00:29] (Nxe3) } 18...Qb4
{ [%eval 55, 11] [%emt 0:00:31] (Qb4) } 19.Kb2
{ [%eval 33,13] [%emt 0:00:29] (Kb2) } 19...O-O-O
{ [%eval 56,11] [%emt 0:00:58] (O-O-O) } 20.Qe2
{ [%eval 24,13] [%emt 0:00:28] (Nc4) } 20...Qb7
{ [%eval 50,11] [%emt 0:00:20] (Qb7) } 21.Nc4
{ [%eval 30,13] [%emt 0: 00:27] (f5) } 21...Re8
{ [%eval 46,11] [%emt 0:02:34] (h5) } 22.e5
{ [%eval 46,11] [%emt 0:00:26] (Na5) } 22...fxe5
{ [%eval 41,10] [%emt 0:00:22] (h5) } 23.Rxd7
{ [%eval 301,14] [%emt 0:00:26] (Na5) } 23...Kxd7
{ [%eval -115,11] [%emt 0:00:23] (Kxd7) } 24.Qg4+
{ [%eval 453,15] [%emt 0:00:25] (Qg4) } 24...Re6
{ [%eval -195,11] [%emt 0:00:14] (Kd8) } 25.Nxe5+
{ [%eval 603,14] [%emt 0:00:24] (Nxe5) } 25...Ke7
{ [%eval -695,12] [%emt 0:00:21] (Ke7) } 26.Rd1
{ [%eval 716,13] [%emt 0:00:24] (Rd1) } 26...Qc8
{ [%eval -635,11] [%emt 0:00:38] (Rd6) } 27.Qf5
{ [%eval 1086,15] [%emt 0:00:23] (Qf5) } 27...Rxe5
{ [%eval -948,13] [%emt 0:00:15] (Rxe5) } 28.Qxc8
{ [%eval 1158,16] [%emt 0:00:23] (Qxc8) } 28...Re6
{ [%eval -1010,13] [%emt 0:00:27] (Re6) } 1-0